Cogmind - Beta 15 @@@ ROGUE MODE // 2025.05.13 @ 15:01:40 Player: Arzon Result: Destroyed by H-55 Commando with Gauss Rifle Performance ------------- Evolutions (2) 1000 Regions Visited (9) 1800 Robots Destroyed (114) 570 Value Destroyed (3041) 3041 Prototype IDs (42) 840 Alien Tech Used (0) 0 Bonus (1433) 1433 TOTAL SCORE: 8684 Bonus ------- Follower Combat Kills 433 Entered Garrisons 200 Used RIF Installer 500 Aligned with FarCom 300 Cogmind --------- Core Integrity 0/550 Matter 290/300 Energy 97/150 System Corruption 1% Temperature Cool (9) Movement Core (200) Ox3 Location -8/Materials Parts ------- > --- POWER (1) -------- Light Angular Momentum Engine > --- PROPULSION (4) --- (None) > --- UTILITY (4) ------ Hacking Suite Hacking Suite Hacking Suite Hacking Suite > --- WEAPON (2) ------- Scythe > --- INVENTORY (5) ---- Improved Light Armor Plating Hacking Suite Relay Coupler [NC] (29) Relay Coupler [NC] (28) Minigun Peak State ------------ > --- POWER ------------ Improved Deuterium Engine > --- PROPULSION ------- Improved Flight Unit Improved Flight Unit Improved Flight Unit Improved Flight Unit > --- UTILITY ---------- Hacking Suite Hacking Suite Hacking Suite Hacking Suite > --- WEAPON ----------- Improved Datajack Spear > --- INVENTORY -------- Cooled Ion Engine Improved Flight Unit Hardened Light Armor Plating Hardened Light Armor Plating Improved Assault Rifle [Rating: 36] Favorites ----------- Power Ion Engine Engine Ion Engine Propulsion Light Treads Treads Light Treads Flight Unit Improved Flight Unit Utility Hacking Suite Device ECM Suite Storage Large Storage Unit Processor Signal Interpreter Hackware Hacking Suite Protection Light Armor Plating Weapon Improved Assault Rifle Energy Gun EM Pulse Gun Energy Cannon Advanced Beam Cannon Ballistic Gun Improved Assault Rifle Ballistic Cannon Light Cannon Launcher Grenade Launcher Special Weapon Field Lobotomy Kit Impact Weapon Great Maul Slashing Weapon Katana Piercing Weapon Spear Special Melee Weapon Improved Datajack Build | -11 -10 -10 -9 -9 -9 -8 -8 -8 -8 ------- Run | Yrd Mat Min Mat Min Exi Min Mat Gar Mat Slots Evolved 4 | . . . 2 . . . 2 . . Power . | . . . . . . . . . . Propulsion 2 | . . . . . . . 2 . . Utility 2 | . . . 2 . . . . . . Weapon . | . . . . . . . . . . Parts Attached 78 | 8 12 5 26 1 1 3 12 . 10 Power 13 | 2 2 . 4 1 . . 2 . 2 Engine 13 | 2 2 . 4 1 . . 2 . 2 Core . | . . . . . . . . . . Reactor . | . . . . . . . . . . Propulsion 22 | 2 2 2 9 . . . 3 . 4 Treads 14 | 2 2 2 8 . . . . . . Leg . | . . . . . . . . . . Wheel . | . . . . . . . . . . Hover . | . . . . . . . . . . Flight 8 | . . . 1 . . . 3 . 4 Utility 17 | 2 5 . 6 . . . 4 . . Device 2 | 1 1 . . . . . . . . Storage 4 | 1 2 . 1 . . . . . . Processor 1 | . . . 1 . . . . . . Hackware 4 | . . . 1 . . . 3 . . Protection 6 | . 2 . 3 . . . 1 . . Artifact . | . . . . . . . . . . Weapon 26 | 2 3 3 7 . 1 3 3 . 4 Energy Gun 2 | 1 1 . . . . . . . . Energy Cannon 1 | . . . 1 . . . . . . Ballistic Gun 13 | 1 1 1 5 . . 3 . . 2 Ballistic Cannon 1 | . . 1 . . . . . . . Launcher 1 | . . 1 . . . . . . . Special Weapon 1 | . . . . . 1 . . . . Impact Weapon 2 | . . . 1 . . . . . 1 Slashing Weapon 2 | . . . . . . . 1 . 1 Piercing Weapon 1 | . . . . . . . 1 . . Special Melee Weapon 2 | . 1 . . . . . 1 . . Unidentified Prototypes 5 | . . . 5 . . . . . . Parts Lost 26 | . 2 4 8 . . 1 1 . 10 Power 3 | . . . 1 . . . . . 2 Propulsion 8 | . . 1 1 . . . . . 6 Utility 4 | . . 1 2 . . 1 . . . Weapon 11 | . 2 2 4 . . . 1 . 2 Highest Loss Streak 4 | . 1 4 3 . . 1 1 . 4 To Critical Strikes . | . . . . . . . . . . Average Backups 11 | 1 10 13 13 14 14 14 5 4 5 Power 1 | . 1 2 2 2 2 2 1 . . Propulsion 4 | . 3 3 4 6 6 6 1 1 . Utility 2 | . 3 4 2 2 2 2 1 3 4 Weapon 2 | . 1 3 2 3 4 2 1 . . Tool/Special . | . . . . . . . . . . Unused Backups 13 | . . . 3 . . . 2 3 5 Power 1 | . . . . . . . 1 . . Propulsion 2 | . . . 1 . . . 1 . . Utility 8 | . . . . . . . . 3 5 Weapon 2 | . . . 2 . . . . . . Tool/Special . | . . . . . . . . . . Average Slot Usage (%) 97 | . 99 91 98 99 93 98 98 100 92 Engine 11 | . 14 14 10 10 11 11 9 9 6 Treads 21 | . 28 26 21 22 22 22 1 . . Flight 3 | . . . . . . . 33 36 31 Device 3 | . 5 10 1 . . . . . . Storage 10 | . 14 14 11 11 11 11 1 . . Processor 6 | . . . 10 11 11 11 . . . Hackware 9 | . . . 8 11 11 11 30 36 36 Protection 8 | . 8 1 11 11 11 10 3 . . Energy Gun 1 | . 6 . . . . . . . . Ballistic Gun 15 | . 20 12 18 22 1 19 1 . 3 Ballistic Cannon 1 | . . 10 2 . . . . . . Special Melee Weapon 1 | . . . . . 11 . 7 9 7 Peak Build Rating 36 | 7 8 8 20 21 27 28 36 36 35 Average Rating 16 | 5 7 7 16 20 20 21 33 35 31 On Entrance 17 | . 7 8 8 20 21 17 21 36 35 Naked Turns . | . . . . . . . . . . Heaviest Build 42 | 15 31 33 36 37 40 42 35 13 11 Greatest Support 43 | 40 40 40 43 43 43 43 43 20 20 Greatest Overweight (x) 2 | 2 . 1 1 . . . . . . Average Overweight (x) . | . . . . . . . . . . Largest Inventory Capacity 15 | 8 15 15 15 15 15 15 15 5 5 Average Capacity 13 | 7 12 15 15 15 15 15 5 5 5 Most Carried 15 | 3 15 15 15 15 15 15 14 5 5 Average Carried 11 | 1 10 13 13 14 14 14 5 4 4 Final Capacity 15 | 8 15 15 15 15 15 15 5 5 5 Final Carried 15 | 2 15 15 15 14 15 14 5 5 5 Class Distribution -------------------- 53% | Mutant 35% | Scavenger-Mutant 10% | Hacker-Sprinter Dominant Class ---------------- Mutant | -10/Materials Scavenger-Mutant | -10/Mines Scavenger-Mutant | -9/Materials Mutant | -9/Mines Mutant | -9/Exiles Mutant | -8/Mines Hacker-Sprinter | -8/Materials Hacker-Sprinter | -8/Garrison Hacker-Sprinter | -8/Materials Resources | -11 -10 -10 -9 -9 -9 -8 -8 -8 -8 ----------- Run | Yrd Mat Min Mat Min Exi Min Mat Gar Mat Matter Collected 2268 | 283 302 171 962 70 . 183 135 . 162 Remotely 47 | 10 37 . . . . . . . . Salvage Created 4444 | 82 690 171 2197 140 . 346 148 . 670 Parts 256 | 1 47 14 131 8 . 24 6 . 25 Haulers Intercepted 9 | . 2 . 5 . . . . . 2 Recyclers Shooed 10 | . . 1 6 2 . 1 . . . Parts Field Recycled . | . . . . . . . . . . Retrieved Matter . | . . . . . . . . . . Parts Self-Destructed . | . . . . . . . . . . Prevented . | . . . . . . . . . . Kills | -11 -10 -10 -9 -9 -9 -8 -8 -8 -8 ------- Run | Yrd Mat Min Mat Min Exi Min Mat Gar Mat Combat Hostiles Destroyed 85 | . 16 15 33 3 . 8 2 . 8 Melee 5 | . . . . . . . 2 . 3 Guns 58 | . 16 2 24 3 . 8 . . 5 Cannons 11 | . . 4 7 . . . . . . AOE 9 | . . 9 . . . . . . . Classes Destroyed 14 | 1 4 1 6 . . 1 . . 1 Worker 4 | . . . 4 . . . . . . Builder 2 | . . . 1 . . . . . 1 Tunneler 1 | . . . . . . 1 . . . Hauler 9 | . 2 . 5 . . . . . 2 Recycler 14 | 1 1 1 7 . . 2 . . 2 Operator 1 | . . . 1 . . . . . . Watcher 7 | . 2 . 3 . . . 1 . 1 Swarmer 25 | . 9 6 4 . . 6 . . . Grunt 35 | . 7 . 18 3 . 2 . . 5 Brawler 1 | . . . 1 . . . . . . Duelist 1 | . . . 1 . . . . . . Sentry 12 | . . . 9 . . . 2 . 1 Hunter 2 | . . . . . . . . . 2 Assembled 9 | . . 9 . . . . . . . Best Kill Streak 9 | 1 3 9 5 3 . 4 1 . 6 Combat Bots Only 9 | . 3 9 4 3 . 4 1 . 5 Max Kills in Single Turn 4 | 1 2 4 1 1 . 1 1 . 2 Gunslinging . | . . . . . . . . . . Exploded 4 | . . 4 . . . . . . . Melee 1 | . . . . . . . 1 . 1 Uniques/NPCs Destroyed . | . . . . . . . . . . Combat | -11 -10 -10 -9 -9 -9 -8 -8 -8 -8 -------- Run | Yrd Mat Min Mat Min Exi Min Mat Gar Mat Hostile Shots Fired 489 | . 68 52 174 16 . 35 21 9 114 Missed 132 | . 17 14 48 2 . 9 4 7 31 Hits 357 | . 51 38 126 14 . 26 17 2 83 Melee 2 | . . 2 . . . . . . . Projectile 355 | . 51 36 126 14 . 26 17 2 83 AOE 3 | . . 3 . . . . . . . Critical Strikes 6 | . . . 3 . . . . . 3 Damage Taken 4809 | . 667 564 1616 191 . 301 241 28 1201 Core 1031 | . 119 69 211 30 . 43 124 18 417 Absorbed by Shields . | . . . . . . . . . . Redirected to Shielding 11 | . . . 11 . . . . . . Regen/Repaired (Parts) 203 | . 71 . 132 . . . . . . Core Remaining (%) 51 | 100 . 24 . . . 29 . . . Volleys Fired 259 | 1 56 20 138 10 . 23 . . 11 Largest 2 | 2 2 2 2 2 . 2 . . 2 Hottest 60 | 60 60 50 50 46 . 46 . . 48 Shots Fired 475 | 2 93 35 262 20 . 41 . . 22 Gun 429 | 2 93 15 241 20 . 36 . . 22 Cannon 36 | . . 15 21 . . . . . . Launcher 5 | . . 5 . . . . . . . Special 5 | . . . . . . 5 . . . Kinetic 437 | 1 66 30 262 20 . 36 . . 22 Thermal . | . . . . . . . . . . Explosive 5 | . . 5 . . . . . . . Electromagnetic 28 | 1 27 . . . . . . . . Robot Hit Streak 22 | 2 8 6 22 12 . 7 . . 15 Robot Miss Streak 5 | . 4 5 4 2 . 2 . . 1 Penetration Max . | . . . . . . . . . . Secondary Targets 6 | . 1 . 2 1 . . . . 2 Max Gunslinging Chain 1 | . 1 . 1 1 . . . . 1 Shots Hit Robots 382 | 2 54 15 193 15 5 27 11 9 51 Core Hits 190 | 2 31 34 85 6 . 13 2 . 17 Critical Kills 2 | . 1 . . 1 . . . . . Critical Parts Destroyed 7 | . . . 3 . . . . . 4 Critical Strikes 13 | . 1 1 4 1 . . 1 . 5 Destroy 3 | . 1 . 1 1 . . . . . Blast 2 | . . 1 1 . . . . . . Smash 6 | . . . 2 . . . . . 4 Sever 1 | . . . . . . . . . 1 Impale 1 | . . . . . . . 1 . . Melee Attacks 88 | . 2 . 13 . 5 . 13 14 41 Impact 23 | . . . 13 . . . . . 10 Slashing 8 | . . . . . . . 4 . 4 Piercing 30 | . . . . . . . 9 5 16 Sneak Attacks 31 | . 1 . 1 . 5 . 4 9 11 Combat Hostiles 4 | . . . . . . . 3 1 . Follow-up Attacks . | . . . . . . . . . . Damage Inflicted 6780 | 26 778 787 2766 222 . 388 498 . 1315 Guns 3834 | 26 674 38 2215 222 . 349 . . 310 Cannons 405 | . . 157 248 . . . . . . Explosions 678 | . 98 580 . . . . . . . Melee 1784 | . . . 281 . . . 498 . 1005 Ramming 79 | . 6 12 22 . . 39 . . . Kinetic 4011 | 13 459 195 2463 222 . 349 . . 310 Thermal 98 | . 98 . . . . . . . . Explosive 580 | . . 580 . . . . . . . Electromagnetic 228 | 13 215 . . . . . . . . Impact 735 | . . . 281 . . . . . 454 Slashing 316 | . . . . . . . 222 . 94 Piercing 733 | . . . . . . . 276 . 457 Highest Corruption 1 | . 1 1 . . . . 1 1 1 Average Corruption 1 | . 1 1 . . . . 1 1 1 Corruption Purged . | . . . . . . . . . . Corruption Blocked . | . . . . . . . . . . Effects 9 | . 4 3 . . . . . 2 . Message Errors 4 | . 2 1 . . . . . 1 . Matter Fused 1 | . . 1 . . . . . . . Heat Flow Errors 1 | . 1 . . . . . . . . Energy Discharges 2 | . . 1 . . . . . 1 . Data Loss (major) 1 | . 1 . . . . . . . . Overload Shots . | . . . . . . . . . . Overflow Damage 460 | . . . 92 . . . 82 . 286 Projectiles . | . . . . . . . . . . Explosions . | . . . . . . . . . . Melee 460 | . . . 92 . . . 82 . 286 Knockbacks 12 | . . 2 9 . . . . . 1 Impact 2 | . . . 1 . . . . . 1 Kinetic 7 | . . 1 6 . . . . . . Secondary 3 | . . 1 2 . . . . . . Self-Inflicted Damage 38 | . 38 . . . . . . . . Shots 1 | . 1 . . . . . . . . Rammed 18 | . 3 3 6 . . 6 . . . Targets Rammed 18 | . 3 3 6 . . 6 . . . Kicked . | . . . . . . . . . . Crushed . | . . . . . . . . . . Highest Temperature 86 | . 86 20 44 4 . . 1 . 24 Average Temperature 11 | . 15 8 10 2 . . 1 . 11 Received Heat Transfer 1672 | . 237 40 675 108 . 63 90 . 459 Siege Activations . | . . . . . . . . . . Martial Activations . | . . . . . . . . . . Shielding Activations . | . . . . . . . . . . Robots Disrupted . | . . . . . . . . . . Combat Hostiles . | . . . . . . . . . . Robots Corrupted 6 | . . . 3 . . . . . 3 Combat Hostiles 2 | . . . 2 . . . . . . Parts Fried 7 | . 1 . 1 . . . . . 5 Impact Corruptions 8 | . . . 3 . . . . . 5 Robots Melted . | . . . . . . . . . . Combat Hostiles . | . . . . . . . . . . Parts Melted 1 | . . . . . . 1 . . . Heat Transferred 150 | . 150 . . . . . . . . Parts Sabotaged . | . . . . . . . . . . Parts Stolen . | . . . . . . . . . . Parts Stripped . | . . . . . . . . . . Power Chain Reactions 2 | . 2 . . . . . . . . Alert | -11 -10 -10 -9 -9 -9 -8 -8 -8 -8 ------- Run | Yrd Mat Min Mat Min Exi Min Mat Gar Mat Maximum Alert Level 2 | . . . 1 . . . . 2 1 Low Security (%) 72 | 100 100 100 38 100 . 100 100 58 . Level 1 26 | . . . 61 . . . . 19 99 Level 2 . | . . . . . . . . 22 . Level 3 . | . . . . . . . . . . Level 4 . | . . . . . . . . . . Level 5 . | . . . . . . . . . . High Security . | . . . . . . . . . . Max Security . | . . . . . . . . . . Peak Influence 550 | 5 98 76 383 168 . 162 90 550 373 Initial 267 | . . 10 3 148 . . . 43 267 Average 112 | . 33 18 192 139 . 61 45 235 292 Influence Increases 3424 | 5 528 198 1053 70 . 420 187 507 456 Destroy 0b10 Robot/C 1880 | . 320 120 660 60 . 320 40 160 200 Destroy 0b10 Robot/NC 195 | 5 25 5 105 . . 15 5 . 35 Destroy Leader 432 | . 78 20 186 10 . 30 22 20 66 Allied During Kill 117 | . . . . . . 40 . 57 20 Successful Hack 63 | . 39 . 24 . . . . . . Select Force Hacks 60 | . . . 30 . . . . . 30 Disable Machine 60 | . 30 . . . . 15 . . 15 Anti-Garrison Action 250 | . . . . . . . . 250 . Destroy Structure 52 | . 6 23 3 . . . . 20 . Partial Spotted 45 | . . . . . . . 15 . 30 Lose Combat Pursuer 270 | . 30 30 45 . . . 105 . 60 Influence Decreases 3071 | 5 500 217 681 323 128 420 120 24 653 Entered New Map 692 | . . 18 6 233 128 . . 24 283 Time Decay 1966 | 5 480 186 595 90 . 360 100 . 150 Lost Part 213 | . 20 13 80 . . . . . 100 Lost Ally 200 | . . . . . . 60 20 . 120 Squads Dispatched 13 | . 3 . 4 . . 1 1 . 4 Investigation 7 | . 2 . 3 . . . . . 2 Extermination . | . . . . . . . . . . Reinforcement 3 | . 1 . 1 . . 1 . . . Assault . | . . . . . . . . . . Garrison 3 | . . . . . . . 1 . 2 Intercept . | . . . . . . . . . . Searches Triggered . | . . . . . . . . . . Construction Impeded 1 | . . . . . . 1 . . . Haulers Reinforced . | . . . . . . . . . . Active Scanning Responses . | . . . . . . . . . . Cargo Convoy Interrupts . | . . . . . . . . . . Stealth | -11 -10 -10 -9 -9 -9 -8 -8 -8 -8 --------- Run | Yrd Mat Min Mat Min Exi Min Mat Gar Mat Distress Signals 13 | . 1 . 10 . . . 1 . 1 Communications Jammed . | . . . . . . . . . . Distress Signals . | . . . . . . . . . . Times Spotted 181 | . 30 28 59 3 . 19 15 4 23 Peak Tracking Total 14 | . 6 14 5 3 . 5 9 4 7 Tactical Retreats 19 | . 4 2 6 . . . 4 . 3 Traps | -11 -10 -10 -9 -9 -9 -8 -8 -8 -8 ------- Run | Yrd Mat Min Mat Min Exi Min Mat Gar Mat Traps Triggered 5 | . 2 . 1 . . . 1 . 1 Indirectly . | . . . . . . . . . . Trap Hack Attempts . | . . . . . . . . . . Triggered . | . . . . . . . . . . Disarmed 3 | . . . 3 . . . . . . Reprogrammed . | . . . . . . . . . . Reused . | . . . . . . . . . . Traps Extracted . | . . . . . . . . . . Installed . | . . . . . . . . . . Triggered . | . . . . . . . . . . Machines | -11 -10 -10 -9 -9 -9 -8 -8 -8 -8 ---------- Run | Yrd Mat Min Mat Min Exi Min Mat Gar Mat Machines Disabled 6 | . 2 . . . . 1 . 2 1 Max in Single Turn 1 | . 1 . . . . 1 . 1 . Garrison Relay 2 | . . . . . . . . 2 . Machines Repaired . | . . . . . . . . . . Machines Dismantled . | . . . . . . . . . . Machines Sabotaged . | . . . . . . . . . . Overloaded Fab Kills . | . . . . . . . . . . Hacking | -11 -10 -10 -9 -9 -9 -8 -8 -8 -8 --------- Run | Yrd Mat Min Mat Min Exi Min Mat Gar Mat Machines Accessed 31 | . 9 . 11 . 3 . 3 1 4 Terminals 22 | . 7 . 9 . . . 2 1 3 Fabricators . | . . . . . . . . . . Repair Stations 2 | . 1 . 1 . . . . . . Recycling Units 1 | . 1 . . . . . . . . Scanalyzers 2 | . . . 1 . . . . . 1 Garrison Access 1 | . . . . . . . 1 . . Total Hacks 117 | . 35 . 43 . 6 . 9 2 22 Successful 86 | . 27 . 27 . 6 . 7 2 17 Failed 31 | . 8 . 16 . . . 2 . 5 Catastrophic 1 | . . . . . . . . . 1 Database Lockouts . | . . . . . . . . . . Manual 81 | . 30 . 25 . 1 . 7 1 17 Terminals 82 | . 28 . 27 . . . 8 2 17 Fabricators . | . . . . . . . . . . Repair Stations 8 | . 4 . 4 . . . . . . Recycling Units 3 | . 3 . . . . . . . . Scanalyzers 17 | . . . 12 . . . . . 5 Garrison Access 1 | . . . . . . . 1 . . Terminal Hacks 27 | . 7 . 3 . 6 . 2 1 8 Record 5 | . . . . . 5 . . . . Robot Analysis 3 | . . . 1 . . . 1 . 1 Branch Access Points 1 | . 1 . . . . . . . . Emergency Access Points 3 | . 1 . . . . . . 1 1 Terminal Index 3 | . 1 . . . . . 1 . 1 Repair Station Index 2 | . 1 . . . . . . . 1 Scanalyzer Index 1 | . . . . . . . . . 1 Alert Level 2 | . 1 . 1 . . . . . . Locate Traps 2 | . 1 . . . . . . . 1 Disarm Traps 1 | . . . 1 . . . . . . Investigation Status 1 | . 1 . . . . . . . . Recall Investigation 1 | . . . . . . . . . 1 Recall Reinforcements 1 | . . . . . . . . . 1 Proto ID Catalog 1 | . . . . . 1 . . . . Fabricator Hacks . | . . . . . . . . . . Repair Station Hacks 8 | . 4 . 4 . . . . . . Scan Component 4 | . 2 . 2 . . . . . . Repair 4 | . 2 . 2 . . . . . . Recycling Unit Hacks 1 | . 1 . . . . . . . . Report Inventory 1 | . 1 . . . . . . . . Scanalyzer 15 | . . . 11 . . . . . 4 Insert Component 6 | . . . 5 . . . . . 1 Analyze 9 | . . . 6 . . . . . 3 Garrison Access Hacks 1 | . . . . . . . 1 . . Unlock Access 1 | . . . . . . . 1 . . Unauthorized Hacks 34 | . 15 . 9 . . . 4 1 5 Terminals 30 | . 13 . 8 . . . 4 1 4 Assimilate 10 | . 5 . 2 . . . 2 . 1 Botnet 15 | . 7 . 5 . . . 1 . 2 Operators 4 | . 1 . 1 . . . 1 . 1 Override 1 | . . . . . . . . 1 . Fabricators . | . . . . . . . . . . Repair Stations . | . . . . . . . . . . Recycling Units 2 | . 2 . . . . . . . . Monitor 1 | . 1 . . . . . . . . Reject 1 | . 1 . . . . . . . . Scanalyzers 2 | . . . 1 . . . . . 1 Extract 2 | . . . 1 . . . . . 1 Garrison Access . | . . . . . . . . . . Data Cores Recovered 1 | . . . . . . . . . 1 Used . | . . . . . . . . . . Hacking Detections 26 | . 8 . 11 . . . 2 1 4 Full Trace Events 2 | . 1 . 1 . . . . . . Feedback Events . | . . . . . . . . . . Feedback Blocked . | . . . . . . . . . . Robot Schematics Acquired . | . . . . . . . . . . Robots Built . | . . . . . . . . . . Authchips . | . . . . . . . . . . Time . | . . . . . . . . . . Total Robot Build Rating . | . . . . . . . . . . Part Schematics Acquired 11 | . . . 8 . . . . . 3 Parts Built . | . . . . . . . . . . Authchips . | . . . . . . . . . . Time . | . . . . . . . . . . Total Part Build Rating . | . . . . . . . . . . Parts Repaired 4 | . 2 . 2 . . . . . . Time 135 | . 52 . 83 . . . . . . Parts Recycled . | . . . . . . . . . . Recycled Matter . | . . . . . . . . . . Retrieved Matter . | . . . . . . . . . . Retrieved Components . | . . . . . . . . . . Parts Scanalyzed 6 | . . . 5 . . . . . 1 Part Schematics Acquired 6 | . . . 5 . . . . . 1 Parts Damaged . | . . . . . . . . . . Bothacking | -11 -10 -10 -9 -9 -9 -8 -8 -8 -8 ------------ Run | Yrd Mat Min Mat Min Exi Min Mat Gar Mat Used RIF Installer 1 | . . . . . . . . 1 . Robots Hacked 9 | . 1 . . . 5 . . . 3 Non-combat 8 | . 1 . . . 4 . . . 3 Combat 1 | . . . . . 1 . . . . Robot Hacks Applied 10 | . 1 . . . 5 . . . 4 parse_system 7 | . . . . . 5 . . . 2 no_distress 3 | . 1 . . . . . . . 2 Relay Couplers Released 9 | . . . . . . . . 9 . Machine Destruction 9 | . . . . . . . . 9 . Fabnet Peak Effective % . | . . . . . . . . . . Robots Rewired 6 | . . . . . . . . 6 . Allies Hacked . | . . . . . . . . . . Hacks Repelled . | . . . . . . . . . . Allies | -11 -10 -10 -9 -9 -9 -8 -8 -8 -8 -------- Run | Yrd Mat Min Mat Min Exi Min Mat Gar Mat Total Allies 14 | . 2 . 1 . . 4 1 6 . Largest Group 6 | . 1 1 1 1 1 4 3 6 6 Highest-Rated Group 167 | . 10 10 10 10 10 86 49 167 167 Highest-Rated Ally 40 | . 10 10 10 10 10 29 29 40 40 Total Orders 1 | . 1 . . . . . . . . FOLLOW 1 | . 1 . . . . . . . . Ally Attacks 90 | . . . . . . 41 2 29 18 Total Damage 1638 | . . . . . . 763 20 515 340 Kills 19 | . . . . . . 8 . 8 3 Allies Corrupted . | . . . . . . . . . . Allies Melted . | . . . . . . . . . . Field Lobotomies 4 | . . . . . . 4 . . . Intel | -11 -10 -10 -9 -9 -9 -8 -8 -8 -8 ------- Run | Yrd Mat Min Mat Min Exi Min Mat Gar Mat Active Infowar (turns) 1455 | . 489 583 383 . . . . . . ECM 1455 | . 489 583 383 . . . . . . Robot Analysis Total 3 | . . . 1 . . . 1 . 1 Derelict Logs Recovered . | . . . . . . . . . . Drone Launches . | . . . . . . . . . . Drone Recoveries . | . . . . . . . . . . Exploration | -11 -10 -10 -9 -9 -9 -8 -8 -8 -8 ------------- Run | Yrd Mat Min Mat Min Exi Min Mat Gar Mat Turns Passed 7745 | 111 1826 767 2495 190 440 1037 242 320 317 Spaces Moved 4574 | 54 966 411 1000 92 268 572 432 430 349 Core 15 | 13 . . . . . . . . 2 Treads 3351 | 41 966 411 1000 92 268 572 1 . . Legs . | . . . . . . . . . . Wheels . | . . . . . . . . . . Hover . | . . . . . . . . . . Flight 1208 | . . . . . . . 431 430 347 Fastest Speed 27 | 50 160 160 160 160 160 160 31 31 27 Average Speed 126 | 148 160 165 160 160 160 160 31 31 31 Slowest Speed 240 | 160 160 240 240 160 160 160 160 31 50 Overloaded Moves . | . . . . . . . . . . Propulsion Burnouts . | . . . . . . . . . . Robots Hopped 2 | . . . . . . 1 . . 1 Potential Cave-ins . | . . . . . . . . . . Cave-ins Triggered . | . . . . . . . . . . Exploration Rate (%) 55 | 4 99 81 82 17 64 92 37 48 29 Regions Visited 9 Branch Regions 4 Pre-discovered Areas . | . . . . . . . . . . Known Exits Taken 6 | . 1 . 1 1 1 1 1 . . Unknown Exits Taken 2 | 1 . 1 . . . . . . . Scrap Searched 5 | . . 2 . 1 . 2 . . . Spaces Dug . | . . . . . . . . . . Terrain Destroyed 33 | . 6 27 . . . . . . . Melee . | . . . . . . . . . . Projectile . | . . . . . . . . . . AOE 33 | . 6 27 . . . . . . . Terrain Rammed . | . . . . . . . . . . Walls Destroyed . | . . . . . . . . . . Machines Disabled . | . . . . . . . . . . Actions | -11 -10 -10 -9 -9 -9 -8 -8 -8 -8 --------- Run | Yrd Mat Min Mat Min Exi Min Mat Gar Mat Total 5967 | 80 1152 461 1624 115 277 642 523 610 483 Wait 813 | 15 86 19 381 12 . 35 45 155 65 Move 4561 | 53 965 410 999 91 267 569 432 428 347 Hop 2 | . . . . . . 1 . . 1 Pick Up 54 | 3 15 3 23 . . 2 1 6 1 Fast Attach 41 | 6 8 1 12 . 1 . 5 . 8 Attach 30 | 1 3 3 11 1 . 3 7 . 1 Detach 18 | . 3 . 6 . 2 . 7 . . Swap 29 | 1 4 2 12 . 1 3 2 1 3 Drop 54 | . 7 . 23 1 1 . 11 6 5 Fire 259 | 1 56 20 138 10 . 23 . . 11 Melee 88 | . 2 . 13 . 5 . 13 14 41 Ram . | . . . . . . . . . . Kick . | . . . . . . . . . . Crush 18 | . 3 3 6 . . 6 . . . Escape Stasis . | . . . . . . . . . . Rewire . | . . . . . . . . . . Trap . | . . . . . . . . . . Miscellaneous . | . . . . . . . . . . Route ------- -11/Scrapyard -10/Materials (discovered 5 exits: *Mat x3 / *Min / [*Sub]) -10/Mines -9/Materials (discovered 3 exits: *Mat x2 / *Min) -9/Mines -9/Exiles -8/Mines -8/Materials (discovered 2 exits: [*Fac] / Gar) -8/Garrison (discovered 3 exits: *Mat x3) -8/Materials History --------- Turn | Location | Event 46 | -11/Scrapyard | Discovered new exit (range 15) 112 | -11/Scrapyard | Entered Materials 164 | -10/Materials | Discovered new exit (range 12) 258 | -10/Materials | Discovered new exit (range 16) 314 | -10/Materials | Build established: Mutant 431 | -10/Materials | Discovered new exit (range 6) 1239 | -10/Materials | Identified exit to Mines 1312 | -10/Materials | Derelicts attacked the area 1535 | -10/Materials | Repaired Assault Rifle 1563 | -10/Materials | Repaired Lgt. Assault Rifle 1782 | -10/Materials | Discovered new exit (range 4) 1938 | -10/Materials | Entered Mines 1938 | -10/Mines | Accompanied by 1 ally 1983 | -10/Mines | Assembled infested the area 1992 | -10/Mines | Core integrity fell below 50% 2020 | -10/Mines | Destroyed 9 combat bots 2039 | -10/Mines | Lost 4 parts (1n1u2w) 2305 | -10/Mines | Discovered new exit (range 9) 2410 | -10/Mines | Build established: Scavenger-Mutant 2705 | -10/Mines | Entered Materials 2705 | -9/Materials | Evolved 2 slots: Utility x2 3231 | -9/Materials | Lost 3 parts (1p2w) 3402 | -9/Materials | Lost 3 parts (2u1w) 4168 | -9/Materials | Discovered new exit (range 4) 4183 | -9/Materials | Identified exit to Materials 4466 | -9/Materials | Discovered exit to Materials (range 15) 4871 | -9/Materials | Core integrity fell below 50% 4962 | -9/Materials | Repaired Imp. Assault Rifle 4995 | -9/Materials | Repaired Imp. Treads 5134 | -9/Materials | Discovered new exit (range 7) 5142 | -9/Materials | Identified exit to Mines 5200 | -9/Materials | Entered Mines 5200 | -9/Mines | Accompanied by 1 ally 5225 | -9/Mines | Met a Derelict bent on vengeance 5383 | -9/Mines | Deemed a non-threat by the Exiles lab entrance 5383 | -9/Mines | Discovered new exit (range 5) 5388 | -9/Mines | Identified exit to Exiles 5390 | -9/Mines | Entered Exiles 5390 | -9/Exiles | Accompanied by 1 ally 5435 | -9/Exiles | Met 8R-AWN 5487 | -9/Exiles | Met EX-HEX 5488 | -9/Exiles | Build established: Mutant 5536 | -9/Exiles | Met EX-BIN 5562 | -9/Exiles | Aligned with FarCom system 5563 | -9/Exiles | Given EX-Vault access code 5618 | -9/Exiles | Opened EX-Vault 5630 | -9/Exiles | Found Field Lobotomy Kit 5678 | -9/Exiles | Warned to stay clear of 0b10 Research branches 5726 | -9/Exiles | Met EX-DEC 5817 | -9/Exiles | Discovered new exit (range 10) 5828 | -9/Exiles | Identified exit to Mines 5830 | -9/Exiles | Left Exiles lab with Field Lobotomy Kit 5830 | -9/Exiles | Entered Mines 5830 | -8/Mines | Accompanied by 1 ally 5927 | -8/Mines | Assimilated H-55 Commando with FLK Orb 5939 | -8/Mines | Assimilated G-50 Soldier with FLK Orb 6049 | -8/Mines | Assimilated L-31 Rogue with FLK Orb 6055 | -8/Mines | Assimilated G-50 Soldier with FLK Orb 6848 | -8/Mines | Discovered exit to Materials (range 8) 6867 | -8/Mines | Entered Materials 6867 | -8/Materials | Accompanied by 2 allies 6867 | -8/Materials | Evolved 2 slots: Propulsion x2 6952 | -8/Materials | Discovered new exit (range 3) 6954 | -8/Materials | Lost 3 allies 7088 | -8/Materials | Garrison activated, responded to threat 7109 | -8/Materials | Identified exit to Garrison 7109 | -8/Materials | Entered Garrison 7109 | -8/Garrison | Warlord forces raided the area 7161 | -8/Garrison | Build established: Hacker-Sprinter 7195 | -8/Garrison | Triggered checkpoint 7239 | -8/Garrison | Triggered checkpoint 7289 | -8/Garrison | Triggered checkpoint 7297 | -8/Garrison | Identified exit to Materials 7319 | -8/Garrison | Triggered checkpoint 7334 | -8/Garrison | Installed Relay Interface Framework 7343 | -8/Garrison | Garrison Relay disabled 7358 | -8/Garrison | Garrison Relay disabled 7429 | -8/Garrison | Entered Materials 7429 | -8/Materials | Accompanied by 6 allies 7549 | -8/Materials | Lost 6 allies 7589 | -8/Materials | Core integrity fell below 50% 7613 | -8/Materials | Garrison activated, responded to threat 7619 | -8/Materials | Lost 4 parts (1p2n1w) 7700 | -8/Materials | Core integrity fell below 20% 7746 | -8/Materials | Destroyed by H-55 Commando with Gauss Rifle Last Messages --------------- Aluminum Leg fried. G-47 Trooper destroyed. Critical hit (Burn: +37). Destroyed Imp. Hover Unit. W-25 Informer system corrupted by crushing effect. Acquired 30 matter. Dropped Great Maul. Acquired Scythe. G-50 Soldier Adv. Heat Sink severed. Slug penetrates Wall. Surge Thruster destroyed. Slug penetrates Wall. Surge Thruster destroyed. Slug penetrates Wall. G-50 Soldier destroyed. Imp. Datajack destroyed. Slug penetrates Wall. Acquired Lgt. Angular Momentum Engine. Slug penetrates Wall. Map ----- +----------------------------------------------------+ | ?????????????????????????????????????????????????? | | ?????????????????????????????????????????????????? | | ?????????????????????????????????????????????????? | | ?????????????????????????????????????????????????? | | ?????????????????????????????????????????????????? | | ?????????????????????????????????????????????????? | | ?????????????????????????????????????????????????? | | ?????????????????????????????????????????????????? | | ?????????????????????????????????????????????????? | | ?????????????????????????????????????????????????? | | ?????????????????????????????????????????????????? | | ?????????????????????????????????????????????????? | | ?????????????????????????????????????????????????? | | ?????????????????????????????????????????????????? | | ?????????????????????????????????????????????????? | | ????????????????????????????????????w????????????? | | ?????????????????????????????????????????????????? | | ?????????????????????????????????????????????????? | | ?????????????????????????????????????????????????? | | ??????????????w??????????????????????????????????? | | ????????????????????g?????Y??????????????????????? | | ?????????????????????????????????????????????????? | | ?????????????????????????????????????????????????? | | ????????????????????????######???????????????????? | | ????????????????????????# ! #???????????????????? | | ????????????????#########@ #???????????????????? | | ????????? hg!% #???????????????????? | | ????????????????####### #/! #????w??????????????? | | ??????????????????????# # [#???????????????????? | | ??????????????????????# # / #???????????????????? | | ??????????????????????# # =#??????? ???????????? | | ??????????????????????#Y######??????#+#??????????? | | ????????????????????### ###?????????# #??????????? | | ????????????????????# #?????????# #??????????? | | ????????????????????# ########### #??????????? | | ????????????????????# " Y #??????????? | | ????????????????????# ########### #??????????? | | ????????????????????# #??????####+######?????? | | ????????????????????#### ##??????# % #?????? | | ????##?????????????????# #???????# #?????? | | ???? ?#??????????????# #???????# !#?????? | | ?????" # ??????########+##??????# == #?????? | | ?????? # ??????# #??????# " " = = #?????? | | ??????? / ?????# #??????# "R" #?????? | | ????????# ?????# #??????# """ #?????? | | ????????# ????# #??????# #?????? | | ######### #################+########/##########? | | =*! [ | | *%* [ [ ########?? | | =]! ![[ #????????? | +----------------------------------------------------+ Best States ------------- Heat Dissipation 31 Energy Generation 16 Energy Capacity 290 Matter Stores 300 Matter Capacity 300 Sight Range 16 Terrain Scan Density 10 ECM Strength 1 Armor Coverage 300 Utility Shielding 33 Evasion (%) 64 Recoil Reduction 2 Offensive Hacking 40 Item Schematics ----------------- Hacking Suite | -9/Materials | Scanalyzed Lgt. Armor Plating | -9/Materials | Scanalyzed Lgt. Assault Rifle | -9/Materials | Scanalyzed Datajack | -9/Materials | Scanalyzed ECM Suite | -9/Materials | Scanalyzed Sensor Array | -9/Materials | Extracted Med. Laser | -9/Materials | Extracted Heat Sink | -9/Materials | Extracted Imp. Flight Unit | -8/Materials | Scanalyzed Med. Storage Unit | -8/Materials | Extracted Autogun | -8/Materials | Extracted Robot Schematics ------------------ None Fabricated ------------ Nothing Repaired ---------- Assault Rifle | 52% | -10/Materials Lgt. Assault Rifle | 71% | -10/Materials Imp. Assault Rifle | 38% | -9/Materials Imp. Treads | 70% | -9/Materials Alien Tech Used ----------------- None Achievements -------------- Brute Force Quantum Hacking Slippery One True Hacker root@ Challenges ------------ None Game ------ Seed WeightCloakProtomatter Manual? 0 Play Time 01:45:35 Cumulative 27.5 hours Start 2025.05.13 @ 13:08:43 End 2025.05.13 @ 15:01:40 Sessions 1 Manual Loads 0 Difficulty Rogue Special Mode None Game No. 27 Rogue 27 Adventurer 0 Explorer 0 Win Type - Total 0 Types 0/0/0/0/0/0/0/0/0/0 Lore% 21 Gallery% 20 Achievement% 23 Wizard Run 0 Options --------- Layout 1 ASCII 0 Keyboard 0 Movement Mouse Keybinds 0 Fullscreen 2 Font 48/Smallcaps Map View 50x35 Zoom Use 0% Tactical HUD 0 Map Filters NONE Filters NONE Steam 1 RUN: c199055a-9b18-493c-93b4-34e392d4cedb